bitfinex-derivatives/quotes_ETHF0:USTF0_20240826
["timestamp","ask_amount","ask_price","bid_price","bid_amount"]
[1724670423002,0.3582,2738.3,2738.1,0.00547535]
[1724670423289,0.00329254,2738.5,2738.3,0.36507]
[1724670423681,0.36835254,2738.5,2738.2,1.08279]
[1724670423883,0.36507,2738.4,2738.1,0.37057535]
[1724670424192,0.36507,2738.4,2738.2,0.36509]
[1724670424584,0.00329254,2738.5,2738.1,0.00547535]
[1724670424889,0.36509,2738.2,2738.1,0.00547535]
[1724670425384,4.75109,2738.2,2738.1,0.00547535]
[1724670427493,1.09909,2738.2,2738.1,0.00547535]
[1724670427689,4.75109,2738.2,2738.1,0.00547535]
[1724670427888,0.36509,2738.2,2738.1,0.00547535]
[1724670428484,0.36509,2738.2,2738.1,0.37058535]
[1724670428690,0.73599,2738.3,2738.1,0.37058535]
[1724670428898,0.36509,2738.2,2738.1,0.00547535]
[1724670430587,0.3709,2738.3,2738.2,0.36509]
[1724670430892,0.00329254,2738.5,2738.4,0.36507]
[1724670431098,0.36834254,2738.5,2738.4,0.36507]
[1724670431990,0.36507,2738.4,2738.3,0.72487]
[1724670432194,0.00329254,2738.5,2738.1,0.00547535]
[1724670432195,0.91594254,2738.5,2738.1,0.00547535]
[1724670432494,0.36509,2738.2,2738.1,0.37058535]
[1724670432693,0.36509,2738.2,2738.1,0.82713913]
[1724670432885,0.36509,2738.2,2738.1,0.46202913]
[1724670433085,0.36509,2738.2,2738.1,0.82713913]
[1724670435398,0.36509,2738.2,2738.1,0.82713633]
[1724670435891,0.36509,2738.3,2738.2,0.36509]
[1724670436090,0.36509,2738.3,2738.2,0.75129]
[1724670436891,0.36507,2738.4,2738.3,0.36508]
[1724670437099,0.00329254,2738.5,2738.4,0.36507]
[1724670437395,0.00329254,2738.5,2738.4,8.94703399]
[1724670438596,0.00329254,2738.5,2738.4,8.94700501]
[1724670439794,0.00329254,2738.5,2738.4,8.03433501]
[1724670441797,0.00329254,2738.5,2738.4,8.03434219]
[1724670443295,0.00547535,2738.6,2738.4,8.03434219]
[1724670443496,4.187,2739.3,2738.8,0.91253]
[1724670443697,0.3547,2739.6,2739.2,3.2078]
[1724670443903,0.36493,2739.5,2739.2,3.2078]
[1724670444093,0.3525,2739.8,2739.6,0.3649]
[1724670444094,0.36489,2739.8,2739.6,0.3649]
[1724670444293,0.36489,2739.8,2739.2,4.1202]
[1724670444596,0.36489,2739.8,2739.4,1.12022]
[1724670444597,0.36491,2739.6,2739.4,1.12022]
[1724670444803,0.36491,2739.6,2739.4,1.48012]
[1724670445503,0.36491,2739.6,2739.5,0.36492]
[1724670445800,0.00915475,2739.8,2739.5,0.36492]
[1724670446096,0.3649,2739.7,2739.4,1.1152]
[1724670446299,0.00915475,2739.8,2739.7,0.36489]
[1724670446497,0.00915475,2739.8,2739.6,0.3649]
[1724670447199,0.37403475,2739.8,2739.5,0.37038535]
[1724670447398,0.37403475,2739.8,2739.5,0.00547535]
[1724670447399,0.36489,2739.7,2739.5,0.00547535]
[1724670448196,0.3649,2739.7,2739.5,0.00547535]
[1724670449203,0.00915475,2739.8,2739.5,0.37039535]
[1724670449204,0.37404475,2739.8,2739.5,0.37039535]
[1724670450198,0.37404475,2739.8,2739.6,0.3649]
[1724670450399,0.00915475,2739.8,2739.6,0.3649]
[1724670450602,0.00915475,2739.8,2739.7,0.36489]
[1724670450800,0.00915475,2739.8,2739.5,0.00547535]
[1724670450993,0.00915475,2739.8,2739.7,0.36489]
[1724670451200,0.00915475,2739.8,2739.5,0.00547535]
[1724670451201,0.00915475,2739.8,2739.6,0.3649]
[1724670451506,0.00915475,2739.8,2739.5,0.00547535]
[1724670451507,0.00915475,2739.8,2739.7,0.36489]
[1724670451802,0.37403475,2739.8,2739.6,0.3649]
[1724670451995,0.00915475,2739.8,2739.6,0.3649]
[1724670452199,0.00915475,2739.8,2739.7,0.36489]
[1724670453211,0.00915475,2739.8,2739.7,4.01449]
[1724670453902,0.00915475,2739.8,2739.7,9.92673]
[1724670454098,3.2078,2740.6,2739.9,0.91216]
[1724670454310,0.3648,2740.5,2740.3,0.36481]
[1724670454605,0.36481,2740.3,2740.1,0.36483]
[1724670455000,0.36889467,2740.3,2740.1,0.36483]
[1724670455214,0.36483,2740.2,2740.0,1.102]
[1724670455411,0.36483,2740.2,2740.1,0.36484]
[1724670455614,0.00408467,2740.3,2740.0,1.102]
[1724670455814,0.00408467,2740.3,2740.1,0.36483]
[1724670456106,0.36890467,2740.3,2740.2,0.36483]
[1724670456496,0.36890467,2740.3,2740.1,0.36483]
[1724670457810,0.36483,2740.2,2740.1,0.36483]
[1724670458011,0.00408467,2740.3,2740.2,0.36483]
[1724670458211,0.00408467,2740.3,2740.1,0.36483]
[1724670458410,0.36483,2740.2,2740.1,0.36483]
[1724670458605,0.36890467,2740.3,2740.2,0.36483]
[1724670458811,0.36890467,2740.3,2740.0,4.3098]
[1724670458812,0.36483,2740.2,2740.1,0.36483]
[1724670460009,0.36484,2740.1,2740.0,4.67464]
[1724670460407,1.29533467,2740.3,2740.1,0.36483]
[1724670460408,0.36483,2740.2,2740.1,0.36483]
[1724670461611,0.38328467,2740.3,2740.0,4.3098]
[1724670461612,0.74810467,2740.3,2740.2,0.36483]
[1724670461915,0.36483,2740.2,2740.1,0.36483]
[1724670462118,0.36890467,2740.3,2740.2,0.36483]
[1724670464613,0.36483,2740.2,2740.1,0.36483]
[1724670464917,0.36890467,2740.3,2740.2,0.36483]
[1724670465515,0.36483,2740.2,2740.1,0.36483]
[1724670467108,0.36890467,2740.3,2740.2,0.36483]
[1724670467808,0.36889467,2740.3,2740.2,0.36483]
[1724670470207,0.00408467,2740.3,2740.2,0.36483]
[1724670470810,0.00408467,2740.3,2740.2,1.2769]
[1724670471113,0.00547535,2740.5,2740.2,1.2769]
[1724670471114,0.00547535,2740.5,2740.4,1.2768]
[1724670471514,0.00547535,2740.5,2740.4,10.7256]
[1724670472019,0.00988952,2740.5,2740.4,10.7256]
[1724670473118,0.00988952,2740.5,2740.4,4.9256]
[1724670475927,0.00988952,2740.5,2740.4,5.8376]
[1724670478425,0.00988952,2740.5,2740.4,9.0454]
[1724670478633,0.00988952,2740.5,2740.4,14.0454]
[1724670479036,0.00988952,2740.5,2740.4,8.1334]
[1724670479237,0.00988952,2740.5,2740.4,7.2214]
[1724670479422,0.00988952,2740.5,2740.4,7.6084]
[1724670480233,0.00988952,2740.5,2740.4,3.9596]
[1724670483034,0.00988952,2740.5,2740.4,7.6084]
[1724670484036,0.00988952,2740.5,2740.4,8.5204]
[1724670484929,0.00988952,2740.5,2740.4,7.6084]
[1724670485129,0.00988952,2740.5,2740.4,8.5204]
[1724670486328,0.00988952,2740.5,2740.4,9.4324]
[1724670487524,0.00988952,2740.5,2740.4,9.88849587]
[1724670487730,0.71911,2741.1,2741.0,0.36472]
[1724670488131,0.71911,2741.1,2740.9,0.36472]
[1724670488534,0.71911,2741.1,2741.0,0.36472]
[1724670488735,0.36472,2741.0,2740.9,0.36472]
[1724670489735,0.36472,2741.0,2740.6,0.91191]
[1724670490133,0.36472,2741.0,2740.9,0.36473]
[1724670490530,0.72365442,2741.1,2741.0,0.36472]
[1724670490730,0.72365442,2741.1,2740.9,0.36472]
[1724670491330,0.72366442,2741.1,2740.9,0.36472]
[1724670491525,0.72366442,2741.1,2740.6,0.91191]
[1724670491732,0.00454442,2741.1,2741.0,0.36472]
[1724670492034,0.00454442,2741.1,2741.0,1.45402]
[1724670492236,0.00454442,2741.1,2741.0,1.91006039]
[1724670493237,0.00454442,2741.1,2741.0,1.45402]
[1724670493426,0.00454442,2741.1,2741.0,1.91006752]
[1724670494834,0.36925442,2741.1,2741.0,1.45402]
[1724670495140,0.72205442,2741.1,2741.0,1.18417475]
[1724670495334,0.35734442,2741.1,2741.0,0.72812]
[1724670495530,0.72205442,2741.1,2741.0,0.3634]
[1724670495841,0.72205442,2741.1,2741.0,0.72812]
[1724670498130,0.72205442,2741.1,2741.0,1.18416856]
[1724670499642,0.72205442,2741.1,2741.0,0.72812]
[1724670499841,0.72205442,2741.1,2741.0,1.18417833]
[1724670500045,4.37005442,2741.1,2740.5,0.91194]
[1724670500237,2.54559442,2741.1,2741.0,0.45605819]
[1724670500432,0.36475,2740.8,2740.7,0.36475]
[1724670500641,4.01355,2740.8,2740.7,0.36475]
[1724670500849,4.01355,2740.8,2740.5,0.3756]
[1724670500850,0.36477,2740.7,2740.6,0.36477]
[1724670501145,0.72577,2740.7,2740.6,0.82090235]
[1724670501934,0.36479,2740.5,2740.4,4.1066206]
[1724670502140,0.36479,2740.5,2740.1,3.2078]
[1724670502336,0.36481,2740.3,2740.2,0.45620919]
[1724670502542,1.11081,2740.4,2740.2,0.45620919]
[1724670502737,1.11081,2740.4,2740.2,0.36482]
[1724670502944,0.3855,2740.3,2740.2,0.36482]
[1724670503149,0.3855,2740.3,2740.2,0.82102247]
[1724670503739,0.75031,2740.3,2740.2,0.82102247]
[1724670504135,0.3855,2740.3,2740.2,0.82102247]
[1724670504447,0.36477,2740.6,2740.5,0.36477]
[1724670504641,0.379,2740.6,2740.5,3.57257]
[1724670504846,4.0278,2740.6,2740.5,4.02873242]
[1724670505048,4.0278,2740.6,2740.5,3.66396242]
[1724670505049,4.39257,2740.6,2740.5,3.66396242]
[1724670505348,5.30451,2740.6,2740.5,3.2078]
[1724670506946,0.3648,2740.4,2740.3,0.36481]
[1724670507138,0.3648,2740.4,2740.3,4.02879049]
[1724670508646,0.3648,2740.4,2740.3,0.45618049]
[1724670508950,0.3648,2740.4,2740.3,0.82099049]
[1724670509147,0.3648,2740.4,2740.3,0.36481]
[1724670509541,0.3648,2740.4,2740.3,0.82100395]
[1724670510348,1.29095,2740.6,2740.4,0.36479]
[1724670510349,0.36479,2740.5,2740.4,0.36479]
[1724670510543,0.36479,2740.5,2740.4,0.82098395]
[1724670510752,0.36479,2740.5,2740.4,0.36479]
[1724670510944,0.36479,2740.5,2740.4,0.82096975]
[1724670515547,0.36479,2740.5,2740.4,0.36479]
[1724670515752,0.36479,2740.5,2740.4,0.82095773]
[1724670518945,0.36479,2740.5,2740.4,0.36479]
[1724670519243,0.36479,2740.5,2740.4,0.82096765]
[1724670519750,0.36479,2740.5,2740.4,0.82096333]
[1724670520252,0.36479,2740.5,2740.4,2.13096333]
[1724670521241,1.27676,2740.5,2740.4,1.76617333]
[1724670521442,1.27676,2740.5,2740.4,0.45617333]
[1724670523152,1.27676,2740.5,2740.4,0.81207333]
[1724670523350,7.14753,2740.5,2740.4,0.45617333]
[1724670523549,1.27694,2740.1,2740.0,3.5637]
[1724670523745,1.27694,2740.1,2740.0,0.72075]
[1724670523943,1.27694,2740.1,2740.0,0.3559]
[1724670524452,1.27694,2740.1,2740.0,0.72075]
[1724670524651,1.27694,2740.1,2740.0,0.3559]
[1724670524854,1.27694,2740.1,2740.0,0.72075]
[1724670525057,1.27694,2740.1,2740.0,0.3559]
[1724670525644,1.27694,2740.1,2740.0,0.72075]
[1724670525849,1.27694,2740.1,2740.0,0.3559]
[1724670526251,1.27699,2740.0,2739.9,3.2078]
[1724670526469,1.63189,2740.0,2739.9,3.2078]
[1724670526658,5.28149,2740.0,2739.9,3.2078]
[1724670528146,14.37838289,2740.0,2739.9,3.2078]
[1724670528347,10.72878289,2740.0,2739.9,3.2078]
[1724670528556,14.37838289,2740.0,2739.9,3.2078]
[1724670528759,0.36491,2739.6,2739.5,3.58847535]
[1724670529354,0.73641,2739.6,2739.5,3.58847535]
[1724670529856,4.38681,2739.6,2739.5,0.00547535]
[1724670530056,5.29908,2739.6,2739.5,0.00547535]
[1724670530962,14.60883679,2739.6,2739.5,0.00547535]
[1724670531359,19.60883679,2739.6,2739.5,0.00547535]
[1724670532963,0.36494,2739.3,2739.2,0.00431063]
[1724670533464,4.01534,2739.3,2739.2,0.00431063]
[1724670533858,4.92771,2739.3,2739.2,0.00431063]
[1724670534063,4.92771,2739.3,2738.8,3.2078]
[1724670534064,1.27741,2739.1,2739.0,0.00547535]
[1724670534362,10.60872831,2739.1,2739.0,0.00547535]
[1724670534551,20.17236831,2739.1,2739.0,0.00547535]
[1724670534752,19.25992831,2739.1,2739.0,0.00547535]
[1724670535059,14.26442497,2739.1,2739.0,0.00868745]
[1724670536058,14.49971581,2739.1,2739.0,0.00868745]
[1724670537561,15.41215581,2739.1,2739.0,0.00868745]
[1724670537763,14.49971581,2739.1,2739.0,0.00868745]
[1724670539666,15.41215581,2739.1,2739.0,0.00868745]
[1724670539866,15.41215581,2739.1,2738.5,0.36505]
[1724670539867,0.36504,2738.6,2738.5,0.36505]
[1724670540069,0.36503,2738.7,2738.6,0.36503]
[1724670540862,0.36503,2738.7,2738.6,0.3695361]
[1724670542053,4.19149666,2739.1,2738.6,3.6557061]
[1724670542275,0.365,2739.0,2738.9,0.36499]
[1724670542571,0.36501,2738.9,2738.8,0.365]
[1724670543370,5.10393666,2739.1,2738.9,0.36499]
[1724670543371,0.36499,2739.0,2738.9,0.36499]
[1724670543567,0.36498,2739.0,2738.9,0.36499]
[1724670544765,0.36947666,2739.1,2739.0,0.36498]
[1724670545372,0.00449666,2739.1,2739.0,7.22398]
[1724670545571,0.91227,2739.6,2739.0,6.859]
[1724670545868,0.36494,2739.3,2739.0,3.2078]
[1724670546068,0.36494,2739.3,2739.1,0.36497]
[1724670546470,0.36494,2739.3,2739.2,0.36496]
[1724670546471,0.0035887,2739.3,2739.2,0.36496]
[1724670546972,0.0035887,2739.3,2739.2,4.01536]
[1724670548870,0.00547535,2739.8,2739.6,0.3649]
[1724670549076,0.37035535,2739.8,2739.7,0.3765]
[1724670549474,0.00547535,2739.8,2739.7,0.74139]
[1724670549778,0.00865944,2739.8,2739.7,4.39099]
[1724670550271,0.36483,2740.2,2740.0,0.36485]
[1724670551270,0.36830637,2740.2,2740.0,0.36485]
[1724670551477,0.36484,2740.1,2740.0,0.36485]
[1724670551681,0.36484,2740.1,2740.0,4.01445]
[1724670551867,0.36830637,2740.2,2740.0,4.01445]
[1724670552069,0.36830637,2740.2,2740.0,0.36485]
[1724670552366,0.36485,2740.1,2739.9,0.36486]
[1724670552677,0.00347637,2740.2,2739.8,0.37034535]
[1724670552678,0.36485,2740.0,2739.8,0.37034535]
[1724670553277,0.36485,2740.0,2739.9,0.3492]
[1724670554866,0.36485,2740.0,2739.8,0.00547535]
[1724670554867,1.27703,2739.9,2739.8,0.00547535]
[1724670555071,1.27703,2739.9,2739.8,0.35467535]
[1724670555378,0.36486,2739.9,2739.8,0.35467535]
[1724670556869,1.27703,2739.9,2739.8,0.35467535]
[1724670557776,4.92663,2739.9,2739.8,0.00547535]
[1724670559079,5.8388,2739.9,2739.8,0.00547535]
[1724670559278,15.05204652,2739.9,2739.8,0.00547535]
[1724670560574,20.05204652,2739.9,2739.8,0.00547535]
[1724670563377,20.27824669,2739.9,2739.8,0.00547535]
[1724670564282,19.36607669,2739.9,2739.8,0.00547535]
[1724670564479,14.36607669,2739.9,2739.8,0.00547535]
[1724670566488,14.13987652,2739.9,2739.8,0.00547535]
[1724670566788,10.49027652,2739.9,2739.8,0.00547535]
[1724670566981,10.49027652,2739.9,2739.8,0.37297535]
[1724670573384,10.49027652,2739.9,2739.8,0.00547535]
[1724670573385,11.40244652,2739.9,2739.8,0.00547535]
[1724670573583,15.05204652,2739.9,2739.8,0.00547535]
[1724670574486,14.13987652,2739.9,2739.8,0.00547535]
[1724670575391,15.05204652,2739.9,2739.8,0.00547535]
[1724670575977,14.13987652,2739.9,2739.8,0.00547535]
[1724670576585,10.49027652,2739.9,2739.8,0.00547535]
[1724670579784,14.13987652,2739.9,2739.8,0.00547535]
[1724670580780,15.05204652,2739.9,2739.8,0.00547535]
[1724670585202,14.13987652,2739.9,2739.8,0.00547535]
[1724670585500,15.05204652,2739.9,2739.8,0.00547535]
[1724670587395,14.13987652,2739.9,2739.8,0.00547535]
[1724670588002,15.05204652,2739.9,2739.8,0.00547535]
[1724670588505,14.13987652,2739.9,2739.8,0.00547535]
[1724670589292,15.05204652,2739.9,2739.8,0.00547535]
[1724670590902,14.13987652,2739.9,2739.8,0.00547535]
[1724670591802,10.49027652,2739.9,2739.8,0.00547535]
[1724670592407,10.49027652,2739.9,2739.8,0.46180646]
[1724670593514,10.49027652,2739.9,2739.8,0.00547535]
[1724670593816,10.49027652,2739.9,2739.8,0.46180453]
[1724670594023,11.80027652,2739.9,2739.8,0.46180453]
[1724670594523,11.80027652,2739.9,2739.8,0.00547535]
[1724670594821,11.80027652,2739.9,2739.8,0.46180672]
[1724670595220,11.80027652,2739.9,2739.8,0.00547535]
[1724670595419,11.80027652,2739.9,2739.8,0.46180592]
[1724670595622,11.80027652,2739.9,2739.8,0.00547535]
[1724670596424,11.80027652,2739.9,2739.8,0.4618134]
[1724670597730,11.80027652,2739.9,2739.8,0.46181429]
[1724670599232,0.00347637,2740.2,2740.1,0.36484]
[1724670599418,0.00347637,2740.2,2740.1,2.6905908]
[1724670599620,0.00547535,2740.4,2740.3,0.36481]
[1724670599825,0.00547535,2740.4,2740.3,8.8810543]
[1724670600119,0.00547535,2740.4,2740.3,13.4832159]
[1724670600532,0.00547535,2740.4,2740.3,14.29132411]
[1724670600724,0.00841538,2740.4,2740.3,17.49890059]
[1724670601531,0.00841538,2740.4,2740.3,15.73743988]
[1724670601934,0.00841538,2740.4,2740.3,9.93743988]
[1724670602123,0.00841538,2740.4,2740.3,8.62743988]
[1724670602432,0.00841538,2740.4,2740.3,8.23695569]
[1724670603029,0.00841538,2740.4,2740.3,7.22141]
[1724670603230,0.00841538,2740.4,2740.3,8.23694308]
[1724670603531,0.00841538,2740.4,2740.3,8.23693486]
[1724670604331,0.36474,2740.8,2740.4,0.36479]
[1724670604527,0.36476,2740.7,2740.5,1.19256583]
[1724670604733,0.36476,2740.7,2740.6,0.45616583]
[1724670604928,0.36475,2740.8,2740.6,0.45616583]
[1724670605128,4.55164,2741.6,2740.7,7.87206702]
[1724670605330,0.00547535,2741.4,2741.1,3.5147]
[1724670605530,0.00547535,2741.4,2741.2,1.19256583]
[1724670605730,0.00547535,2741.4,2741.3,0.45616583]
[1724670606131,0.00547535,2741.4,2741.2,0.7364]
[1724670606327,0.00547535,2741.4,2741.3,0.45601104]
[1724670606525,0.00547535,2741.4,2741.3,4.46867761]
[1724670606723,3.11,2742.4,2741.6,0.36463]
[1724670606724,0.3691,2742.4,2741.6,0.36463]
[1724670606932,0.36455,2742.3,2741.8,0.36461]
[1724670607135,0.36455,2742.3,2741.9,0.82869761]
[1724670607336,4.187,2742.5,2742.0,3.2078]
[1724670607632,9.49937376,2742.4,2742.0,3.21327535]
[1724670607836,9.13483376,2742.4,2742.0,3.21327535]
[1724670608025,9.13483376,2742.4,2742.0,3.57785535]
[1724670608223,0.00864385,2742.5,2742.3,3.2078]
[1724670611529,0.00864385,2742.5,2742.3,3.57234]
[1724670611735,0.00864385,2742.5,2742.3,3.5742]
[1724670611931,0.00864385,2742.5,2742.3,3.2078]
[1724670612234,0.37316385,2742.5,2742.3,3.2078]
[1724670612536,0.37317385,2742.5,2742.3,3.2078]
[1724670612838,0.00864385,2742.5,2742.3,3.2078]
[1724670613429,0.36453,2742.4,2742.3,3.2078]
[1724670613837,0.37317385,2742.5,2742.3,3.2078]
[1724670614125,0.36453,2742.4,2742.3,3.2078]
[1724670615141,4.01093,2742.4,2742.3,3.2078]
[1724670615530,0.36457,2742.1,2742.0,0.00547535]
[1724670616634,4.01177,2742.1,2742.0,0.00547535]
[1724670618437,4.92321,2742.1,2742.0,0.00547535]
[1724670618634,4.92321,2742.1,2740.9,6.88279428]
[1724670618635,0.36465,2741.6,2741.1,3.2078]
[1724670618843,0.36465,2741.6,2741.2,0.36469]
[1724670619731,0.36465,2741.6,2741.3,0.36468]
[1724670619927,0.36463,2741.7,2741.3,0.36467]
[1724670620334,0.36464,2741.6,2741.3,0.36467]
[1724670620545,0.36464,2741.6,2741.2,0.36468]
[1724670620737,0.36464,2741.6,2741.1,3.21327535]
[1724670621040,0.36464,2741.6,2741.3,0.36468]
[1724670622035,0.36463,2741.7,2741.4,0.36466]
[1724670622238,0.36463,2741.7,2741.5,0.36465]
[1724670622435,0.36463,2741.7,2741.6,0.3863]
[1724670622836,8.90730361,2741.8,2741.6,0.3863]
[1724670623033,8.90730361,2741.8,2741.7,0.36463]
[1724670623351,0.36446,2743.0,2742.4,0.36453]
[1724670623547,4.187,2743.2,2742.4,11.72233]
[1724670623845,0.36445,2743.1,2742.4,10.36873]
[1724670624035,0.36445,2743.0,2742.4,10.36873]
[1724670624345,0.36445,2743.0,2742.4,15.36873]
[1724670624540,0.36445,2743.0,2742.4,7.21873]
[1724670624743,4.187,2743.2,2742.4,6.8542]
[1724670624744,0.36448,2742.8,2742.4,6.8542]
[1724670625243,0.36448,2742.8,2742.4,3.2078]
[1724670625440,4.187,2743.2,2742.4,3.2078]
[1724670625942,0.36449,2742.8,2742.4,6.8542]
[1724670626852,4.187,2743.2,2742.4,3.2078]
[1724670626853,0.36451,2742.6,2742.4,3.2078]
[1724670627037,0.3645,2742.7,2742.4,3.2078]
[1724670627549,0.37316385,2742.5,2742.2,0.3863]
[1724670628140,0.00864385,2742.5,2742.2,0.3863]
[1724670628447,0.37316385,2742.5,2742.2,0.3863]
[1724670628837,0.00864385,2742.5,2742.2,0.3863]
[1724670629742,0.00864385,2742.5,2742.2,0.75085]
[1724670630246,0.00864385,2742.5,2742.3,0.36454]
[1724670630440,0.00864385,2742.5,2742.2,0.75085]
[1724670630639,0.00864385,2742.5,2742.3,0.36454]
[1724670631035,0.00864385,2742.5,2742.4,0.36453]
[1724670632148,0.00864385,2742.5,2742.3,0.36454]
[1724670632446,0.00864385,2742.5,2742.4,0.36453]
[1724670633035,0.00864385,2742.5,2742.2,0.3863]
[1724670633238,0.37317385,2742.5,2742.2,0.3863]
[1724670633842,0.00864385,2742.5,2742.3,3.6464]
[1724670634049,0.379,2743.5,2742.4,3.5822]
[1724670634345,0.36447,2742.9,2742.5,0.3786]
[1724670634650,0.36448,2742.8,2742.4,3.5822]
[1724670634950,0.36447,2742.9,2742.4,3.94673]
[1724670635151,0.00287,2742.8,2742.4,3.94673]
[1724670637546,0.00287,2742.8,2742.5,0.36452]
[1724670637748,0.00287,2742.8,2742.6,0.3645]
[1724670637949,0.00287,2742.8,2742.7,0.3559]
[1724670638155,0.00287,2742.8,2742.7,0.36004222]
[1724670640952,0.36735,2742.8,2742.7,0.36004222]
[1724670642346,0.36735,2742.8,2742.7,0.00414222]
[1724670642547,4.01295,2742.8,2742.7,0.00414222]
[1724670644358,0.00287,2742.8,2742.7,0.00414222]
[1724670644755,0.36735,2742.8,2742.7,0.00414222]
[1724670644950,0.00287,2742.8,2742.7,3.64974222]
[1724670645154,0.00287,2742.8,2742.7,4.01423222]
[1724670645646,0.00287,2742.8,2742.7,0.36863222]
[1724670646252,0.00287,2742.8,2742.7,4.01423222]
[1724670646647,0.00287,2742.8,2742.7,0.36863222]
[1724670647049,0.36735,2742.8,2742.7,0.00414222]
[1724670648958,0.36735,2742.8,2742.7,0.36863222]
[1724670649958,0.36735,2742.8,2742.7,0.00414222]
[1724670650153,4.92415,2742.8,2742.7,0.00414222]
[1724670650353,23.19828613,2742.8,2742.7,0.00414222]
[1724670651858,23.19828613,2742.8,2742.3,0.00547535]
[1724670651859,1.27587,2742.4,2742.3,0.00547535]
[1724670652358,4.92227,2742.4,2742.3,0.00547535]
[1724670652956,5.30557,2742.4,2742.3,0.00899631]
[1724670653759,0.3833,2742.4,2742.3,0.00899631]
[1724670654060,0.3645,2742.7,2742.5,0.36452]
[1724670654260,0.3645,2742.7,2742.6,0.3794]
[1724670654559,0.00287,2742.8,2742.7,0.36449]
[1724670655658,0.36735,2742.8,2742.6,0.7439]
[1724670655860,0.00287,2742.8,2742.7,0.36449]
[1724670656757,0.36735,2742.8,2742.6,0.7439]
[1724670657457,0.00287,2742.8,2742.7,0.36449]
[1724670657666,0.36736,2742.8,2742.6,0.7439]
[1724670657858,0.00287,2742.8,2742.7,0.36449]
[1724670658254,0.00287,2742.8,2742.7,4.01009]
[1724670660656,0.00287,2742.8,2742.7,4.46586681]
[1724670661775,0.00287,2742.8,2742.7,4.46583787]
[1724670662258,0.00287,2742.8,2742.7,9.46583787]
[1724670662453,0.00287,2742.8,2742.7,10.37707787]
[1724670662662,0.00547535,2742.9,2742.8,0.36448]
[1724670662863,0.00547535,2742.9,2742.8,4.46582787]
[1724670663658,0.00878917,2742.9,2742.8,4.46582787]
[1724670664767,0.00878917,2742.9,2742.8,4.01008]
[1724670664962,0.00878917,2742.9,2742.8,4.465832]
[1724670665162,0.00878917,2742.9,2742.8,0.36448]
[1724670665473,0.00878917,2742.9,2742.8,0.82024445]
[1724670665675,0.00878917,2742.9,2742.8,4.46584445]
[1724670668171,0.00878917,2742.9,2742.8,4.01008]
[1724670668368,0.00878917,2742.9,2742.8,4.46583157]
[1724670668677,0.00878917,2742.9,2742.8,5.02487877]
[1724670668981,0.00878917,2742.9,2742.8,4.01008]
[1724670669161,0.00878917,2742.9,2742.8,4.46584802]
[1724670669363,0.00878917,2742.9,2742.8,5.02491308]
[1724670670371,0.00878917,2742.9,2742.8,4.46584802]
[1724670671062,0.00878917,2742.9,2742.8,5.02491174]
[1724670671366,0.37325917,2742.9,2742.8,4.46585771]
[1724670671770,0.37325917,2742.9,2742.8,4.10137771]
[1724670673076,0.37325917,2742.9,2742.8,4.46585771]
[1724670673466,0.37325917,2742.9,2742.8,0.82025771]
[1724670674775,0.37325917,2742.9,2742.8,0.36448]
[1724670675074,0.37325917,2742.9,2742.8,0.82025238]
[1724670675269,0.37325917,2742.9,2742.8,0.36448]
[1724670675463,0.37325917,2742.9,2742.8,0.82025208]
[1724670676378,0.37325917,2742.9,2742.8,0.82025464]
[1724670677964,0.37325917,2742.9,2742.8,4.46585464]
[1724670678181,0.00878917,2742.9,2742.8,4.46585464]
[1724670679175,0.37325917,2742.9,2742.8,0.82025464]
[1724670681381,0.37325917,2742.9,2742.8,0.36448]
[1724670681677,0.37325917,2742.9,2742.8,0.82024851]
[1724670681876,1.28442917,2742.9,2742.8,0.45576851]
[1724670682083,0.37325917,2742.9,2742.8,0.82024851]
[1724670682680,0.37325917,2742.9,2742.8,4.46584851]
[1724670683176,0.37325917,2742.9,2742.8,0.45576851]
[1724670683371,1.28442917,2742.9,2742.8,0.45576851]
[1724670684583,0.36449,2742.7,2742.6,3.9517]
[1724670684772,0.36449,2742.7,2742.6,4.96657854]
[1724670685077,0.36449,2742.7,2742.6,4.60207854]
[1724670685270,0.36449,2742.7,2742.6,3.66359214]
[1724670685979,0.36449,2742.7,2742.6,4.02810214]
[1724670686477,0.36449,2742.7,2742.6,3.66359214]
[1724670686875,0.3523,2742.8,2742.6,4.02809214]
[1724670687084,0.36449,2742.7,2742.6,3.57231]
[1724670687267,0.36449,2742.7,2742.6,4.02811432]
[1724670687676,0.36449,2742.7,2742.6,3.57231]
[1724670687886,0.36449,2742.7,2742.6,4.02811289]
[1724670688492,0.36449,2742.7,2742.6,3.66360289]
[1724670690098,4.92213,2742.7,2742.6,3.66360289]
[1724670691592,4.01089,2742.7,2742.6,3.66360289]
[1724670692391,0.36449,2742.7,2742.6,3.66360289]
[1724670693392,0.7193,2742.8,2742.6,3.66360289]
[1724670693590,0.37326917,2742.9,2742.8,0.36448]
[1724670693791,0.37326917,2742.9,2742.8,0.82028289]
[1724670693993,0.00878917,2742.9,2742.8,0.82028289]
[1724670694189,0.00878917,2742.9,2742.8,0.36448]
[1724670694389,0.00878917,2742.9,2742.8,4.92128]
[1724670694596,0.00878917,2742.9,2742.8,5.9361066]
[1724670694899,0.00878917,2742.9,2742.8,5.0249066]
[1724670697394,0.37325917,2742.9,2742.8,5.0249066]
[1724670697592,0.37325917,2742.9,2742.8,0.82025202]
[1724670698100,0.37325917,2742.9,2742.8,0.82026083]
[1724670698997,0.37325917,2742.9,2742.8,0.45578083]
[1724670698998,1.28442917,2742.9,2742.8,0.45578083]
[1724670699198,4.93002917,2742.9,2742.8,0.45578083]
[1724670699505,1.28442917,2742.9,2742.8,0.45578083]
[1724670699704,5.84119917,2742.9,2742.8,0.45578083]
[1724670701107,1.27573,2742.7,2742.6,3.2078]
[1724670701291,1.27573,2742.7,2742.6,3.66364762]
[1724670701603,0.36449,2742.7,2742.6,0.45584762]
[1724670701805,0.36451,2742.6,2742.5,0.36452]
[1724670702003,0.36448,2742.8,2742.7,0.36448]
[1724670702205,0.36448,2742.8,2742.7,0.82031407]
[1724670702407,4.01008,2742.8,2742.7,0.82031407]
[1724670702605,4.01008,2742.8,2742.7,0.45583407]
[1724670703510,4.92128,2742.8,2742.7,0.45583407]
[1724670704006,4.01008,2742.8,2742.7,0.45583407]